[Event "7th Salamanca Festival 2024"]
[Site "Salamanca"]
[Date "2024.05.22"]
[Round "2.2"]
[White "Iturrizaga Bonelli, Eduardo"]
[Black "Paehtz, Elisabeth"]
[Result "0-1"]
[ECO "E61"]
[WhiteElo "2591"]
[BlackElo "2457"]
[Annotator "TA"]
[PlyCount "96"]
[EventDate "2024.05.18"]
[EventType "tourn"]
[EventCountry "ESP"]
[SourceTitle "playchess.com"]
[Source "ChessBase"]
[SourceQuality "1"]
[TimeControl "2400+5"]

{[%evp 33,96,50,47,36,59,50,75,77,97,77,80,100,104,72,69,66,133,127,135,43,49,63,151,121,135,149,197,212,190,204,229,255,243,211,210,205,214,0,0,0,0,0,0,0,0,0,0,0,17,17,20,0,0,-20,0,-320,-324,-306,-312,-633,-235,-645,-600,-594,-468]} 1. c4 {[%emt 0:00:03]} Nf6 {[%emt 0:00:04]} 2. g3 {[%emt 0:00:09]} g6 {[%emt 0:00:03]} 3. Bg2 {[%emt 0:00:04]} Bg7 {[%emt 0:00:03]} 4. Nc3 {[%emt 0:00:02]} O-O {[%emt 0:00:03]} 5. d4 {[%emt 0:00:04]} Nc6 {[%emt 0:00:24]} 6. e3 {[%emt 0:05:09]} d6 {[%emt 0:00:14]} 7. Nge2 {[%emt 0:00:02]} Bd7 {[%emt 0:00:14]} 8. O-O {[%emt 0:00:15]} e5 {[%emt 0:00:06]} 9. h3 {[%emt 0:00:33] E61: King's Indian: Early deviations for White, including Smyslov System.} Re8 {[%emt 0:00:18]} 10. d5 {[%emt 0:01:11]} Na5 {[%emt 0:01:25]} 11. b3 {[%emt 0:01:03]} a6 {[%emt 0:00:24]} 12. a4 $146 {[%emt 0:01:04]} ({Predecessor:} 12. Ba3 b5 13. c5 dxc5 14. Bxc5 Nb7 15. b4 Nd6 16. e4 h5 17. Nc1 Nh7 18. Nb3 Nc4 19. Nd2 Nd6 20. Nb3 Nc4 21. Nd2 Nd6 {½-½ Monclus Domingo,A (2196)-Llaneza Vega,P (2175) Catalunya-chT Gp1 2016 (7.3)}) 12... c5 {[%emt 0:00:37]} 13. dxc6 {[%emt 0:00:38]} Bxc6 {[%emt 0:00:04]} 14. e4 {[%emt 0:00:03]} b6 {[%emt 0:02:11]} 15. Be3 {[%emt 0:03:55]} Qb8 {[%emt 0:02:36]} 16. Nd5 {[%emt 0:04:57]} Nxd5 {[%emt 0:02:28]} 17. cxd5 {[%emt 0:00:20]} Bd7 {[%emt 0:00:01]} 18. Rb1 {[%emt 0:01:27]} b5 {[%emt 0:03:23]} 19. Qd2 {[%emt 0:02:46]} b4 {[%emt 0:00:31]} 20. Nc1 {[%emt 0:00:01]} Qb7 {[%emt 0:00:56]} 21. Na2 {[%emt 0:00:01]} Rab8 {[%emt 0:00:16]} 22. Rfc1 {[%emt 0:00:02]} f5 {[%emt 0:00:34]} 23. f3 {[%emt 0:00:25]} Rf8 {[%emt 0:01:01]} 24. Qd3 {[%emt 0:02:13]} Rf7 {[%emt 0:03:48]} ({Better is} 24... f4 $14 25. gxf4 exf4) 25. Bd2 $16 {[%emt 0:01:34]} Qb6+ {[%emt 0:03:08]} 26. Qe3 {[%emt 0:03:21]} (26. Kh2 $1 $16) 26... Qxe3+ $14 {[%emt 0:00:07]} 27. Bxe3 {[%emt 0:00:01]} f4 {[%emt 0:00:03]} (27... h5 $14) 28. Bd2 $16 {[%emt 0:00:12]} fxg3 {[%emt 0:00:02]} 29. Nxb4 {[%emt 0:00:03]} (29. Bxb4 $6 Nxb3 30. Bxd6 (30. Rxb3 a5 $11) 30... Rb6 $11) 29... Nxb3 {[%emt 0:00:33]} (29... Rb6 $16 {might work better.} 30. Rc7 Bf6) 30. Nc6 $1 $18 {[%emt 0:05:17]} (30. Rxb3 a5 31. Bf1 h5 $16) 30... Rb7 {[%emt 0:00:18]} (30... Bxc6 $2 31. dxc6 h5 32. Rc3 $18) 31. Nd8 $1 {[%emt 0:00:15]} Bxa4 {[%emt 0:01:34]} 32. Nxb7 {[%emt 0:01:15]} Rxb7 {[%emt 0:00:01]} 33. Rc4 {[%emt 0:00:59]} Rb5 {[%emt 0:02:48]} 34. Be1 {[%emt 0:02:45]} (34. Rxa4 $6 Nxd2 35. Rxb5 axb5 36. Ra8+ Kf7 $16) 34... Nc5 {[%emt 0:01:08]} 35. Ra1 $2 {[%emt 0:00:01]} (35. Rcb4 $18) 35... Bh6 $1 $11 {[%emt 0:01:15]} (35... Bb3 $2 36. Rb4 $18) 36. Bxg3 {[%emt 0:00:46]} (36. Raxa4 Nxa4 37. Rc8+ (37. Rxa4 $2 Rb1 $19) 37... Kf7 38. Bxg3 a5 39. Rc7+ Kf8 $14) 36... Bb3 $1 {[%emt 0:02:22]} 37. Rxc5 {[%emt 0:00:01]} Rxc5 {[%emt 0:00:01]} 38. Rxa6 {[%emt 0:00:01]} Be3+ {[%emt 0:00:50]} 39. Kh2 {[%emt 0:00:03]} Rc1 {[%emt 0:00:01]} 40. h4 {[%emt 0:00:01]} Bg1+ {[%emt 0:00:48]} 41. Kh3 {[%emt 0:00:02]} Bc5 {[%emt 0:00:02]} 42. h5 {[%emt 0:00:12]} gxh5 {[%emt 0:00:18]} 43. Kh4 {[%emt 0:00:07]} Rg1 {[%emt 0:01:18]} 44. Bh3 $2 {[%emt 0:00:12][%mdl 8192] [#]} (44. Kh3 $11 {and White stays safe.}) 44... Rh1 $1 $19 {[%emt 0:00:02]} 45. Rc6 {[%emt 0:00:01] [#]} Ba4 $1 {[%emt 0:00:50]} 46. Rc7 $2 {[%emt 0:00:07]} (46. Bxe5 dxe5 (46... Bxc6 47. dxc6 dxe5 48. c7 $11) 47. Rxc5) 46... Bb5 $2 {[%emt 0:00:31]} (46... Bb6 47. Rb7 Bd8+ 48. Kxh5 Be8+ (48... Rxh3+ $2 49. Kg4 $19) 49. Kg4 h5+ 50. Kf5 Rxh3 51. Bxe5 dxe5) 47. Kg5 $2 {[%emt 0:00:10]} ({Much worse is} 47. Bxe5 Bf1 48. Kg5 (48. Rc8+ $2 Kf7 $19) 48... Bxh3 $19 (48... Rxh3 $2 49. f4 $19)) (47. Rb7 Ba6 48. Rb2) 47... Rxh3 $19 {[%emt 0:00:10]} 48. Kf6 {[%emt 0:00:04]} Be8 {[%emt 0:00:23]} ({And not} 48... Rxg3 49. Rc8+) 0-1

[Event "7th Salamanca Festival 2024"]
[Site "Salamanca"]
[Date "2024.05.22"]
[Round "2.3"]
[White "Adams, Michael"]
[Black "Ponomariov, Ruslan"]
[Result "1/2-1/2"]
[ECO "C65"]
[WhiteElo "2677"]
[BlackElo "2646"]
[Annotator "TA"]
[PlyCount "61"]
[EventDate "2024.05.18"]
[EventType "tourn"]
[EventCountry "ESP"]
[SourceTitle "playchess.com"]
[Source "ChessBase"]
[SourceQuality "1"]
[TimeControl "2400+5"]

{[%evp 9,61,7,14,7,18,-1,13,15,12,0,0,0,0,0,0,0,0,0,0,0,0,0,0,6,10,0,-9,-10,0,-13,-10,-22,-18,-16,0,0,0,0,0,0,0,0,0,0,0,0,0,0,0,0,0,0,0,0]} 1. e4 {[%emt 0:00:03]} e5 {[%emt 0:00:02]} 2. Nf3 {[%emt 0:00:02]} Nc6 {[%emt 0:00:01]} 3. Bb5 {[%emt 0:00:02]} Nf6 {[%emt 0:00:01]} 4. d3 {[%emt 0:00:03]} Bc5 {[%emt 0:00:02]} 5. Ba4 {[%emt 0:00:05]} O-O {[%emt 0:00:27] The position is equal.} 6. O-O {[%emt 0:00:03]} d6 {[%emt 0:00:28]} 7. c3 {[%emt 0:00:02]} Ne7 {[%emt 0:00:28]} 8. h3 {[%emt 0:00:54]} Ng6 {[%emt 0:00:20]} 9. d4 {[%emt 0:00:06]} Bb6 {[%emt 0:00:03]} 10. Bc2 {[%emt 0:00:02]} d5 {[%emt 0:02:19]} 11. exd5 {[%emt 0:05:18]} exd4 {[%emt 0:00:12]} 12. cxd4 {[%emt 0:00:03]} Nxd5 {[%emt 0:01:09]} 13. Nc3 {[%emt 0:00:05]} c6 {[%emt 0:00:06]} 14. Re1 {[%emt 0:00:58]} Ndf4 {[%emt 0:01:59]} 15. Bxg6 {[%emt 0:03:40]} Nxg6 {[%emt 0:00:24]} 16. d5 {[%emt 0:00:02] Against Be6} cxd5 {[%emt 0:01:04]} 17. Bg5 {[%emt 0:01:08]} f6 {[%emt 0:00:37]} 18. Be3 {[%emt 0:00:03]} Ba5 {[%emt 0:01:45]} 19. Qb3 {[%emt 0:03:18][%cal Oa1d1]} Bxc3 {[%emt 0:00:08]} 20. bxc3 {[%emt 0:01:52]} b6 {[%emt 0:06:37]} 21. Rad1 {[%emt 0:00:07]} Be6 {[%emt 0:00:13]} (21... Bb7 $5) 22. Bxb6 {[%emt 0:02:21]} Qxb6 {[%emt 0:00:38]} 23. Qxb6 {[%emt 0:00:02]} axb6 {[%emt 0:00:01]} 24. Rxe6 {[%emt 0:00:02]} Rxa2 {[%emt 0:02:09]} 25. Rxb6 {[%emt 0:00:06]} Nf4 {[%emt 0:00:17]} 26. Nd4 {[%emt 0:02:28]} Rfa8 {[%emt 0:00:20]} 27. h4 {[%emt 0:02:32]} R8a7 {[%emt 0:02:55]} 28. Rb4 {[%emt 0:03:15]} Kf7 {[%emt 0:01:38]} 29. Rdb1 {[%emt 0:03:58]} Ne2+ {[%emt 0:02:40]} 30. Nxe2 {[%emt 0:01:27]} Rxe2 {[%emt 0:00:02]} 31. Rd4 {[%emt 0:00:49] An interesting draw.   Weighted Error Value: White=0.01 (flawless) /Black=0.02 (flawless) .  OK:         	White=13    	Black=14     Best:        	White=2     	---} 1/2-1/2

[Event "7th Salamanca Festival 2024"]
[Site "Salamanca"]
[Date "2024.05.22"]
[Round "2.4"]
[White "Alekseenko, Kirill"]
[Black "Salimova, Nurgyul"]
[Result "1-0"]
[ECO "C54"]
[WhiteElo "2679"]
[BlackElo "2436"]
[Annotator "RC"]
[PlyCount "149"]
[EventDate "2024.05.18"]
[EventType "tourn"]
[EventCountry "ESP"]
[SourceTitle "playchess.com"]
[Source "ChessBase"]
[SourceQuality "1"]
[TimeControl "2400+5"]

1. e4 {[%emt 0:00:06]} e5 {[%emt 0:00:05]} 2. Nf3 {[%emt 0:00:08]} Nc6 {[%emt 0:00:03]} 3. Bc4 {[%emt 0:00:18]} Nf6 {[%emt 0:00:25]} 4. d3 {[%emt 0:00:02]} h6 {[%emt 0:01:10]} 5. c3 {[%emt 0:01:36]} Bc5 {[%emt 0:01:09]} 6. O-O {[%emt 0:00:20]} d6 {[%emt 0:00:48]} 7. b4 {[%emt 0:00:36]} Bb6 {[%emt 0:00:02]} 8. Nbd2 {[%emt 0:00:03]} O-O {[%emt 0:01:04]} 9. Bb3 {[%emt 0:00:17]} a6 {[%emt 0:02:07]} 10. a4 {[%emt 0:02:37]} Ne7 {[%emt 0:06:40]} 11. Re1 {[%emt 0:03:37]} c6 {[%emt 0:04:56]} 12. a5 {[%emt 0:00:47]} Bc7 {[%emt 0:02:12]} 13. d4 {[%emt 0:01:43]} Ng6 {[%emt 0:00:42]} 14. dxe5 {[%emt 0:01:24]} dxe5 {[%emt 0:00:09]} 15. Qc2 {[%emt 0:00:03]} Nh5 {[%emt 0:01:48]} 16. Nf1 {[%emt 0:00:18]} Bg4 {[%emt 0:01:46]} 17. N3d2 {[%emt 0:01:00]} Nhf4 {[%emt 0:00:31]} 18. Nc4 {[%emt 0:06:49]} Nxg2 {[%emt 0:06:17]} 19. Kxg2 {[%emt 0:00:24]} Nh4+ {[%emt 0:00:19]} 20. Kh1 {[%emt 0:05:55]} Qf6 {[%emt 0:02:43]} 21. Re3 {[%emt 0:00:26]} Rad8 {[%emt 0:02:32]} 22. Rg3 {[%emt 0:02:26]} Bd1 {[%emt 0:01:00]} 23. Qa2 {[%emt 0:01:53]} Bf3+ {[%emt 0:00:34]} 24. Kg1 {[%emt 0:00:01]} Bxe4 {[%emt 0:00:11]} 25. Ncd2 {[%emt 0:00:06]} Bg6 {[%emt 0:02:15]} 26. Bb2 {[%emt 0:03:31]} e4 {[%emt 0:00:12]} 27. Re1 {[%emt 0:00:01]} Bxg3 {[%emt 0:00:10]} 28. hxg3 {[%emt 0:00:03]} Nf3+ {[%emt 0:00:10]} 29. Nxf3 {[%emt 0:00:03]} exf3 {[%emt 0:00:01]} 30. Qa1 {[%emt 0:02:11]} Qg5 {[%emt 0:00:11]} 31. Re3 {[%emt 0:01:15]} Rd3 {[%emt 0:00:01]} 32. Qe1 {[%emt 0:01:06]} Qh5 {[%emt 0:00:10]} 33. Bd1 {[%emt 0:00:19]} Rfd8 {[%emt 0:00:18]} 34. Bxf3 {[%emt 0:00:07]} Rxe3 {[%emt 0:00:03]} 35. Qxe3 {[%emt 0:00:06]} Qf5 {[%emt 0:00:02]} 36. Be2 {[%emt 0:00:56]} Kh7 {[%emt 0:00:07]} 37. c4 {[%emt 0:00:04]} f6 {[%emt 0:00:04]} 38. Qc1 {[%emt 0:00:16]} Qe4 {[%emt 0:00:08]} 39. Ne3 {[%emt 0:00:02]} h5 {[%emt 0:00:02]} 40. Bf1 {[%emt 0:00:08]} Qe6 {[%emt 0:00:07]} 41. b5 {[%emt 0:00:13]} h4 {[%emt 0:00:09]} 42. gxh4 {[%emt 0:00:01]} Qe4 {[%emt 0:00:01]} 43. Bg2 {[%emt 0:00:07]} Qxh4 {[%emt 0:00:02]} 44. bxc6 {[%emt 0:00:03]} bxc6 {[%emt 0:00:01]} 45. Bxc6 {[%emt 0:00:06]} Qg5+ {[%emt 0:00:05]} 46. Bg2 {[%emt 0:00:10]} Be4 {[%emt 0:00:05]} 47. Qf1 {[%emt 0:00:08]} Bf3 {[%emt 0:00:05]} 48. Bc3 {[%emt 0:00:07]} Kg8 {[%emt 0:00:09]} 49. Kh2 {[%emt 0:00:02]} Qh4+ {[%emt 0:00:01]} 50. Bh3 {[%emt 0:00:05]} Qf4+ {[%emt 0:00:03]} 51. Kg1 {[%emt 0:00:01]} Kf7 {[%emt 0:00:11]} 52. c5 {[%emt 0:00:06]} Rh8 {[%emt 0:00:01]} 53. c6 {[%emt 0:00:11]} Bxc6 {[%emt 0:00:07]} 54. Qxa6 {[%emt 0:00:04]} Qe4 {[%emt 0:00:13]} 55. Bg2 {[%emt 0:00:05]} Qb1+ {[%emt 0:00:02]} 56. Qf1 {[%emt 0:00:04]} Qxf1+ {[%emt 0:00:10]} 57. Kxf1 {[%emt 0:00:06]} Bxg2+ {[%emt 0:00:03]} 58. Kxg2 {[%emt 0:00:02]} Ke6 {[%emt 0:00:03]} 59. Kf3 {[%emt 0:00:02]} Rc8 {[%emt 0:00:03]} 60. Bd4 {[%emt 0:00:07]} f5 {[%emt 0:00:06]} 61. a6 {[%emt 0:00:09]} g5 {[%emt 0:00:02]} 62. a7 {[%emt 0:00:03]} Ra8 {[%emt 0:00:09]} 63. Ke2 {[%emt 0:00:03]} f4 {[%emt 0:00:02]} 64. Ng4 {[%emt 0:00:10]} Kd5 {[%emt 0:00:01]} 65. Kd3 {[%emt 0:00:01]} Ke6 {[%emt 0:00:11]} 66. f3 {[%emt 0:00:01]} Kd5 {[%emt 0:00:03]} 67. Bf2 {[%emt 0:00:04]} Kc6 {[%emt 0:00:08]} 68. Ke4 {[%emt 0:00:02]} Kb7 {[%emt 0:00:02]} 69. Kf5 {[%emt 0:00:02]} Rg8 {[%emt 0:00:03]} 70. Nh6 {[%emt 0:00:11]} Rc8 {[%emt 0:00:13]} 71. Kxg5 {[%emt 0:00:02]} Rc2 {[%emt 0:00:01]} 72. Ng4 {[%emt 0:00:04]} Rc4 {[%emt 0:00:04]} 73. Kf5 {[%emt 0:00:02]} Ra4 {[%emt 0:00:03]} 74. Nf6 {[%emt 0:00:06]} Ra2 {[%emt 0:00:06]} 75. Ne4 {[%emt 0:00:02]} 1-0

[Event "7th Salamanca Festival 2024"]
[Site "Salamanca"]
[Date "2024.05.23"]
[Round "3.1"]
[White "Salimova, Nurgyul"]
[Black "Calzetta Ruiz, Monica"]
[Result "1-0"]
[ECO "D02"]
[WhiteElo "2436"]
[BlackElo "2244"]
[Annotator "RC"]
[PlyCount "95"]
[EventDate "2024.05.18"]
[EventType "tourn"]
[EventCountry "ESP"]
[SourceTitle "playchess.com"]
[Source "ChessBase"]
[SourceQuality "1"]
[TimeControl "2400+5"]

1. d4 {[%emt 0:00:03]} d5 {[%emt 0:00:02]} 2. Nf3 {[%emt 0:00:35]} c5 {[%emt 0:00:32]} 3. g3 {[%emt 0:05:47]} cxd4 {[%emt 0:00:39]} 4. Bg2 {[%emt 0:00:18]} Nf6 {[%emt 0:02:03]} 5. O-O {[%emt 0:00:13]} h6 {[%emt 0:00:09]} 6. b3 {[%emt 0:04:19]} e6 {[%emt 0:00:08]} 7. Bb2 {[%emt 0:00:30]} Bc5 {[%emt 0:00:04]} 8. Bxd4 {[%emt 0:02:23]} Bxd4 {[%emt 0:00:33]} 9. Qxd4 {[%emt 0:00:34]} O-O {[%emt 0:00:24]} 10. Nbd2 {[%emt 0:01:57]} Nc6 {[%emt 0:00:07]} 11. Qb2 {[%emt 0:00:27]} Re8 {[%emt 0:13:17]} 12. b4 {[%emt 0:00:52]} Qb6 {[%emt 0:01:22]} 13. Rab1 {[%emt 0:01:04]} e5 {[%emt 0:07:01]} 14. b5 {[%emt 0:01:18]} Nd4 {[%emt 0:00:06]} 15. Nxd4 {[%emt 0:00:35]} exd4 {[%emt 0:00:01]} 16. Nf3 {[%emt 0:04:09]} Ne4 {[%emt 0:02:46]} 17. Qxd4 {[%emt 0:05:39]} Qxd4 {[%emt 0:00:07]} 18. Nxd4 {[%emt 0:00:01]} Nd2 {[%emt 0:00:27]} 19. Bxd5 {[%emt 0:00:46]} Nxf1 {[%emt 0:00:02]} 20. Rxf1 {[%emt 0:01:00]} Bh3 {[%emt 0:01:24]} 21. Rb1 {[%emt 0:00:54]} Rad8 {[%emt 0:00:05]} 22. c4 {[%emt 0:00:26]} Kf8 {[%emt 0:02:35]} 23. Rb3 {[%emt 0:00:43]} Re7 {[%emt 0:00:44]} 24. f3 {[%emt 0:01:42]} Be6 {[%emt 0:00:24]} 25. e4 {[%emt 0:01:54]} Bxd5 {[%emt 0:00:36]} 26. cxd5 {[%emt 0:00:02]} Rc7 {[%emt 0:00:01]} 27. Kf2 {[%emt 0:00:27]} Rc1 {[%emt 0:00:36]} 28. Ra3 {[%emt 0:00:23]} Rd1 {[%emt 0:01:35]} 29. Ke3 {[%emt 0:00:26]} Rc8 {[%emt 0:00:03]} 30. Nf5 {[%emt 0:00:37]} g6 {[%emt 0:02:49]} 31. Nd6 {[%emt 0:00:36]} Rc2 {[%emt 0:01:20]} 32. Rxa7 {[%emt 0:00:36]} Rxh2 {[%emt 0:00:12]} 33. Rxb7 {[%emt 0:00:19]} Rxa2 {[%emt 0:00:03]} 34. Rxf7+ {[%emt 0:00:13]} Kg8 {[%emt 0:00:01]} 35. Kf4 {[%emt 0:00:42]} Rb2 {[%emt 0:00:13]} 36. Rc7 {[%emt 0:00:20]} Rd3 {[%emt 0:00:13]} 37. Rc6 {[%emt 0:00:11]} Rbb3 {[%emt 0:00:04]} 38. b6 {[%emt 0:00:03]} Rxf3+ {[%emt 0:00:02]} 39. Ke5 {[%emt 0:00:00]} Rxg3 {[%emt 0:00:19]} 40. b7 {[%emt 0:00:04]} h5 {[%emt 0:00:04]} 41. Rc8+ {[%emt 0:00:04]} Kg7 {[%emt 0:00:00]} 42. b8=Q {[%emt 0:00:08]} Rxb8 {[%emt 0:00:02]} 43. Rxb8 {[%emt 0:00:01]} h4 {[%emt 0:00:01]} 44. Rb7+ {[%emt 0:00:04]} Kh6 {[%emt 0:00:06]} 45. Nf7+ {[%emt 0:00:15]} Kh5 {[%emt 0:00:01]} 46. d6 {[%emt 0:00:02]} h3 {[%emt 0:00:05]} 47. d7 {[%emt 0:00:03]} h2 {[%emt 0:00:03]} 48. d8=Q {[%emt 0:00:04]} 1-0

[Event "7th Salamanca Festival 2024"]
[Site "Salamanca"]
[Date "2024.05.23"]
[Round "3.2"]
[White "Ponomariov, Ruslan"]
[Black "Alekseenko, Kirill"]
[Result "1-0"]
[ECO "A17"]
[WhiteElo "2646"]
[BlackElo "2679"]
[Annotator "RC"]
[PlyCount "89"]
[EventDate "2024.05.18"]
[EventType "tourn"]
[EventCountry "ESP"]
[SourceTitle "playchess.com"]
[Source "ChessBase"]
[SourceQuality "1"]
[TimeControl "2400+5"]

1. Nf3 {[%emt 0:00:03]} d5 {[%emt 0:00:12]} 2. e3 {[%emt 0:00:10]} Nf6 {[%emt 0:00:29]} 3. c4 {[%emt 0:00:13]} e6 {[%emt 0:00:08]} 4. Nc3 {[%emt 0:00:39]} Bd6 {[%emt 0:00:37]} 5. b3 {[%emt 0:00:42]} O-O {[%emt 0:00:30]} 6. Bb2 {[%emt 0:00:04]} Re8 {[%emt 0:01:35]} 7. Nb5 {[%emt 0:01:35]} Be7 {[%emt 0:01:01]} 8. Be2 {[%emt 0:02:17]} a6 {[%emt 0:00:43]} 9. Nc3 {[%emt 0:00:03]} b6 {[%emt 0:00:20]} 10. cxd5 {[%emt 0:00:46]} exd5 {[%emt 0:00:09]} 11. O-O {[%emt 0:00:09]} Nbd7 {[%emt 0:05:59]} 12. d4 {[%emt 0:03:25]} Bd6 {[%emt 0:00:16]} 13. a4 {[%emt 0:00:14]} Qe7 {[%emt 0:00:47]} 14. Qc1 {[%emt 0:00:19]} Bb7 {[%emt 0:00:09]} 15. Ba3 {[%emt 0:00:08]} c5 {[%emt 0:00:32]} 16. Rd1 {[%emt 0:01:15]} Rac8 {[%emt 0:00:13]} 17. Ra2 {[%emt 0:00:19]} Ne4 {[%emt 0:03:50]} 18. Rc2 {[%emt 0:01:00]} Ndf6 {[%emt 0:00:23]} 19. Nxe4 {[%emt 0:01:55]} Nxe4 {[%emt 0:01:05]} 20. Bd3 {[%emt 0:01:56]} c4 {[%emt 0:02:50]} 21. Bxd6 {[%emt 0:00:44]} Nxd6 {[%emt 0:00:01]} 22. bxc4 {[%emt 0:02:38]} dxc4 {[%emt 0:00:02]} 23. Bxc4 {[%emt 0:00:06]} Bxf3 {[%emt 0:02:48]} 24. gxf3 {[%emt 0:00:02]} Qf6 {[%emt 0:00:01]} 25. Kg2 {[%emt 0:02:38]} Qg6+ {[%emt 0:05:02]} 26. Kf1 {[%emt 0:00:03]} Qh5 {[%emt 0:00:16]} 27. Ke2 {[%emt 0:01:49]} b5 {[%emt 0:00:43]} 28. Bd3 {[%emt 0:03:28]} bxa4 {[%emt 0:00:22]} 29. Bxa6 {[%emt 0:01:00]} Ra8 {[%emt 0:00:37]} 30. Bd3 {[%emt 0:01:45]} a3 {[%emt 0:00:13]} 31. Ra2 {[%emt 0:01:43]} Rec8 {[%emt 0:00:25]} 32. Qd2 {[%emt 0:00:53]} f5 {[%emt 0:00:42]} 33. Rc1 {[%emt 0:03:57]} Ne4 {[%emt 0:01:09]} 34. Qe1 {[%emt 0:00:10]} Ng5 {[%emt 0:01:01]} 35. Rxc8+ {[%emt 0:00:04]} Rxc8 {[%emt 0:00:02]} 36. Qh1 {[%emt 0:00:03]} Rc3 {[%emt 0:01:05]} 37. h4 {[%emt 0:01:49]} f4 {[%emt 0:02:50]} 38. Ra1 {[%emt 0:00:50]} Ne4 {[%emt 0:01:46]} 39. Qb1 {[%emt 0:00:25]} Nf6 {[%emt 0:01:55]} 40. Qb8+ {[%emt 0:00:33]} Kf7 {[%emt 0:00:01]} 41. Rb1 {[%emt 0:01:02]} Rxd3 {[%emt 0:00:18]} 42. Kxd3 {[%emt 0:00:16]} a2 {[%emt 0:00:15]} 43. Qa7+ {[%emt 0:00:04]} Kg6 {[%emt 0:00:03]} 44. Rg1+ {[%emt 0:00:04]} Kh6 {[%emt 0:00:02]} 45. Qxg7# {[%emt 0:00:02]} 1-0

[Event "7th Salamanca Festival 2024"]
[Site "Salamanca"]
[Date "2024.05.23"]
[Round "3.3"]
[White "Paehtz, Elisabeth"]
[Black "Adams, Michael"]
[Result "0-1"]
[ECO "C84"]
[WhiteElo "2457"]
[BlackElo "2677"]
[Annotator "TA"]
[PlyCount "50"]
[EventDate "2024.05.18"]
[EventType "tourn"]
[EventCountry "ESP"]
[SourceTitle "playchess.com"]
[Source "ChessBase"]
[SourceQuality "1"]
[TimeControl "2400+5"]

{[%evp 19,50,5,0,0,4,5,4,0,0,-18,-16,-27,-26,-28,-21,-36,-35,-47,-22,-44,-41,-62,-30,-45,-27,-35,-27,-35,-39,-497,-481,-556,-540]} 1. e4 {[%emt 0:00:03]} e5 {[%emt 0:00:02]} 2. Nf3 {[%emt 0:00:01]} Nc6 {[%emt 0:00:02]} 3. Bb5 {[%emt 0:00:02]} a6 {[%emt 0:00:02]} 4. Ba4 {[%emt 0:00:02]} Nf6 {[%emt 0:00:02]} 5. d4 {[%emt 0:00:02]} exd4 {[%emt 0:00:31]} 6. O-O {[%emt 0:00:02]} Be7 {[%emt 0:00:34]} 7. e5 {[%emt 0:00:02]} Ne4 {[%emt 0:00:04]} 8. Nxd4 {[%emt 0:00:12]} O-O {[%emt 0:00:12]} 9. Nf5 {[%emt 0:01:06]} d5 {[%emt 0:00:27]} 10. exd6 {[%emt 0:00:46]} Bxf5 {[%emt 0:01:26]} (10... Bf6 {seems wilder.} 11. Bxc6 Bxf5 12. Bxb7 Rb8) 11. dxe7 {[%emt 0:00:02]} Qxe7 {[%emt 0:02:43]} 12. Bxc6 {[%emt 0:00:43]} bxc6 {[%emt 0:00:03]} 13. Qf3 {[%emt 0:01:40] The position is equal.} Qf6 {[%emt 0:03:34]} 14. Nc3 {[%emt 0:06:11]} Nxc3 {[%emt 0:00:55]} 15. bxc3 {[%emt 0:00:01] White is weak on the light squares} (15. Qxc3 {simplifies} Qxc3 16. bxc3 f6 17. Bf4) 15... Rfe8 {[%emt 0:04:34]} 16. Be3 {[%emt 0:01:08]} Qg6 {[%emt 0:00:23]} 17. Rab1 {[%emt 0:02:46]} Bxc2 {[%emt 0:01:35]} 18. Rb7 {[%emt 0:00:01]} Re7 {[%emt 0:00:48]} 19. Bc5 {[%emt 0:03:10]} Re5 {[%emt 0:01:42]} 20. Be3 $1 {[%emt 0:00:01]} Rc8 {[%emt 0:00:44]} 21. Qf4 {[%emt 0:01:14]} Re7 {[%emt 0:03:23]} 22. Bc5 {[%emt 0:03:21]} Rd7 $40 {[%emt 0:00:47][%mdl 128] White needs to defend precisely.} 23. Re1 {[%emt 0:00:06][%cal Ob7c7]} h6 {[%emt 0:00:29]} 24. Bd4 $2 {[%emt 0:00:08][%mdl 8192] [#]} (24. h3 $15) 24... c5 $1 $19 {[%emt 0:00:48][%mdl 512]} 25. Bxc5 {[%emt 0:00:44] [#]} (25. Bxg7 Be4) 25... Be4 $1 {[%emt 0:00:57][%mdl 512] Weighted Error Value: White=0.51/Black=0.06 (flawless) .  Loses game:     	White=1     	---        Inaccurate:     	---       	Black=1      OK:         	White=2     	Black=6      Strong:       	White=1     	---        Brilliant:      	---       	Black=2} 0-1

[Event "7th Salamanca Festival 2024"]
[Site "Salamanca"]
[Date "2024.05.23"]
[Round "3.4"]
[White "Muzychuk, Mariya"]
[Black "Iturrizaga Bonelli, Eduardo"]
[Result "0-1"]
[ECO "B22"]
[WhiteElo "2510"]
[BlackElo "2591"]
[Annotator "TA"]
[PlyCount "48"]
[EventDate "2024.05.18"]
[EventType "tourn"]
[EventCountry "ESP"]
[SourceTitle "playchess.com"]
[Source "ChessBase"]
[SourceQuality "1"]
[TimeControl "2400+5"]

{[%evp 12,48,14,14,20,18,8,6,18,25,8,0,0,0,5,-8,0,0,19,29,45,0,0,-87,-93,-196,-197,-590,-565,-835,-774,-807,-820,-867,-836,-1014,-885,-1951,-1929]} 1. e4 {[%emt 0:00:03]} c5 {[%emt 0:00:02]} 2. Nf3 {[%emt 0:00:05]} e6 {[%emt 0:00:08]} 3. c3 {[%emt 0:00:08]} d5 {[%emt 0:00:31]} 4. exd5 {[%emt 0:00:08]} Qxd5 {[%emt 0:00:02]} 5. d4 {[%emt 0:00:06]} Nf6 {[%emt 0:00:05]} 6. Na3 {[%emt 0:00:11]} Nc6 {[%emt 0:00:06]} 7. Be3 {[%emt 0:00:15]} cxd4 {[%emt 0:00:20] [#]} 8. Nb5 $1 {[%emt 0:00:04]} Qd8 {[%emt 0:02:38] Prevents Nc7+} 9. Nbxd4 {[%emt 0:00:45]} Qc7 {[%emt 0:00:05] The position is equal.} 10. Nxc6 {[%emt 0:01:43]} bxc6 {[%emt 0:00:04]} 11. Qd4 {[%emt 0:00:16]} Be7 {[%emt 0:00:47]} 12. O-O-O {[%emt 0:00:15]} O-O {[%emt 0:00:09]} 13. Qe5 {[%emt 0:02:24]} Qb7 {[%emt 0:00:23]} 14. Bd3 {[%emt 0:00:28]} Rb8 {[%emt 0:00:32]} 15. Rd2 {[%emt 0:03:24]} Nd5 {[%emt 0:03:38]} 16. Bd4 {[%emt 0:03:26][%csl Gd4][%cal Re5g7]} f6 $1 {[%emt 0:07:21]} 17. Qe4 {[%emt 0:11:52]} (17. Qh5 $1 $11 g6 18. Bxg6) 17... g6 $36 {[%emt 0:00:52][%mdl 2048] Threatens to win with ...e5. Black is on the roll.} 18. h4 {[%emt 0:03:08]} (18. Be3 $17) 18... e5 $19 {[%emt 0:00:42]} 19. Be3 $2 {[%emt 0:00:15] [#]} (19. Nxe5 Bf5 (19... fxe5 $2 20. Bxe5 Bf5 21. Qd4 $19) 20. Qe2 fxe5 21. Bxe5 Bxd3 22. Qxd3) 19... Ba3 $1 {[%emt 0:02:16][%cal Ra3b2][%mdl 512] Black is clearly winning.} 20. Bc4 {[%emt 0:08:10][%cal Oe4c2]} (20. Qc4 Bxb2+) 20... Bxb2+ {[%emt 0:00:04]} 21. Kd1 {[%emt 0:00:01]} Be6 {[%emt 0:00:01]} 22. Bxd5 {[%emt 0:01:08]} cxd5 {[%emt 0:00:25]} 23. Qb4 {[%emt 0:01:28]} Qa6 {[%emt 0:00:01]} 24. Qc5 {[%emt 0:00:26]} Ba3 {[%emt 0:00:07] Weighted Error Value: White=1.07/Black=0.11 (very precise) .  Mistake:       	White=3     	---        Inaccurate:     	White=2     	---        OK:         	White=6     	Black=4      Best:        	---       	Black=2      Strong:       	White=1     	Black=1      Brilliant:      	---       	Black=1} 0-1